bitfinex-derivatives/quotes_SOLF0:USTF0_20240926
["timestamp","ask_amount","ask_price","bid_price","bid_amount"]
[1727336157138,14.5255,150.83,150.8,3.3161]
[1727336157343,3.9578,150.91,150.76,82.88779343]
[1727336157344,3.9578,150.91,150.82,11.21]
[1727336157641,11.21,150.87,150.82,11.21]
[1727336157839,11.21,150.86,150.82,11.21]
[1727336158036,3.9578,150.91,150.8,11.21]
[1727336158240,11.21,150.84,150.8,11.21]
[1727336158638,11.21,150.84,150.81,3.3158]
[1727336158639,14.5254,150.84,150.81,3.3158]
[1727336161542,3.9578,150.91,150.83,11.21]
[1727336161741,11.21,150.89,150.83,11.21]
[1727336161937,11.21,150.89,150.84,3.3151]
[1727336161938,3.3148,150.86,150.84,3.3151]
[1727336163145,3.3146,150.87,150.84,3.3151]
[1727336163348,3.9578,150.91,150.86,11.21]
[1727336163648,12.4968,150.91,150.86,11.21]
[1727336164052,11.21,150.91,150.86,11.21]
[1727336164749,3.3143,150.89,150.86,14.5246]
[1727336165742,11.21,150.91,150.87,3.3145]
[1727336165743,3.3139,150.9,150.87,3.3145]
[1727336165951,11.21,150.92,150.87,11.21]
[1727336166151,11.21,150.92,150.84,3.27033562]
[1727336166152,11.21,150.91,150.86,11.21]
[1727336166548,11.21,150.9,150.86,3.3146]
[1727336167449,14.5241,150.9,150.86,3.3146]
[1727336167656,1.3821,150.95,150.87,3.3146]
[1727336167843,11.21,150.91,150.87,3.3146]
[1727336168152,11.21,150.91,150.86,11.21]
[1727336168854,3.3141,150.9,150.86,14.5247]
[1727336169448,3.3143,150.89,150.85,14.5249]
[1727336170955,3.3141,150.9,150.86,14.5247]
[1727336171449,3.3141,150.9,150.87,14.5245]
[1727336173754,11.21,150.89,150.83,1.3642]
[1727336173949,11.21,150.89,150.84,11.21]
[1727336174350,3.3145,150.88,150.84,14.525]
[1727336174554,3.3145,150.88,150.84,11.21]
[1727336174756,3.3145,150.88,150.84,14.5251]
[1727336175553,3.3148,150.86,150.83,3.3154]
[1727336175852,11.21,150.85,150.82,79.56]
[1727336176857,14.5252,150.85,150.82,82.8755]
[1727336177062,3.3152,150.85,150.82,82.8755]
[1727336177253,3.3152,150.85,150.82,3.3155]
[1727336178455,3.3152,150.85,150.81,11.21]
[1727336178456,3.3152,150.85,150.79,2.6672]
[1727336178657,3.3152,150.85,150.81,11.21]
[1727336179858,3.3152,150.85,150.82,3.3156]
[1727336180259,3.3152,150.85,150.82,14.5256]
[1727336180460,11.21,150.85,150.8,23.49916964]
[1727336180660,11.21,150.84,150.8,12.28916964]
[1727336180857,14.5254,150.84,150.8,15.60526964]
[1727336181161,11.21,150.86,150.82,11.21]
[1727336181356,11.21,150.88,150.83,11.21]
[1727336181557,3.315,150.86,150.83,11.21]
[1727336182960,3.315,150.85,150.82,14.5256]
[1727336184667,3.3149,150.86,150.82,14.5256]
[1727336185165,3.3149,150.86,150.83,11.21]
[1727336186566,3.3149,150.86,150.82,14.5256]
[1727336191365,14.5251,150.85,150.82,3.3156]
[1727336192969,3.3151,150.85,150.82,3.3156]
[1727336195061,11.21,150.84,150.78,1.3202]
[1727336195264,11.21,150.83,150.79,4.73101061]
[1727336195668,11.21,150.83,150.78,11.21]
[1727336196068,11.21,150.83,150.79,4.73139463]
[1727336196268,11.21,150.83,150.78,11.21]
[1727336196470,11.21,150.83,150.79,4.73148349]
[1727336196669,14.5256,150.83,150.8,3.3159]
[1727336197671,3.3156,150.83,150.8,14.5259]
[1727336198268,3.3156,150.83,150.79,3.3162]
[1727336198467,3.3156,150.83,150.79,14.5262]
[1727336198676,3.3157,150.82,150.79,14.5262]
[1727336199078,11.21,150.81,150.77,79.58]
[1727336199471,11.21,150.81,150.77,90.79]
[1727336199668,11.21,150.84,150.79,11.21]
[1727336200570,3.3158,150.82,150.79,11.21]
[1727336204081,3.3158,150.82,150.79,14.5263]
[1727336204476,3.3158,150.82,150.79,3.3163]
[1727336205478,3.3155,150.83,150.8,3.3161]
[1727336206483,4.0555,150.89,150.8,11.21]
[1727336206778,4.0555,150.89,150.76,3.29386169]
[1727336206779,4.0555,150.89,150.83,11.21]
[1727336207082,2.7808,150.89,150.85,11.21]
[1727336207281,11.21,150.91,150.86,11.21]
[1727336207782,1.3202,150.98,150.85,11.21]
[1727336207783,3.3142,150.89,150.85,11.21]
[1727336208383,3.3142,150.89,150.85,14.5248]
[1727336208883,3.3142,150.89,150.85,11.21]
[1727336209384,3.25805226,150.93,150.86,11.21]
[1727336209578,1.3202,150.98,150.88,11.21]
[1727336209774,11.21,150.93,150.88,11.21]
[1727336210083,3.3137,150.92,150.87,11.21]
[1727336210379,3.3132,150.94,150.89,14.5239]
[1727336210580,14.5232,150.94,150.89,14.5239]
[1727336210781,11.21,150.94,150.89,14.5239]
[1727336211780,3.3133,150.93,150.89,14.5239]
[1727336212184,11.21,150.92,150.88,3.3143]
[1727336212382,14.5237,150.92,150.88,3.3143]
[1727336213082,11.21,150.91,150.87,11.21]
[1727336214184,14.5235,150.92,150.88,14.5243]
[1727336214490,11.21,150.92,150.88,11.21]
[1727336214885,11.21,150.92,150.89,3.3141]
[1727336215085,14.5235,150.92,150.89,3.3141]
[1727336215492,14.5235,150.92,150.88,14.5243]
[1727336217094,14.5231,150.94,150.88,11.21]
[1727336217589,14.5231,150.94,150.9,14.5237]
[1727336218191,14.5231,150.94,150.91,3.3136]
[1727336218589,3.3131,150.94,150.91,3.3136]
[1727336226195,3.3128,150.95,150.92,14.5234]
[1727336226790,3.3127,150.96,150.93,3.3132]
[1727336227895,3.3124,150.97,150.95,11.21]
[1727336228098,3.36173081,151.02,150.96,11.21]
[1727336228301,11.21,151.02,150.97,11.21]
[1727336228597,3.3118,151.0,150.97,14.5224]
[1727336228809,3.30891554,151.03,150.97,14.5224]
[1727336228810,3.30891554,151.03,150.97,11.21]
[1727336229002,4.0313,151.05,150.97,11.21]
[1727336229198,3.3116,151.01,150.97,11.21]
[1727336230109,3.3116,151.01,150.97,14.5222]
[1727336231302,11.21,151.03,150.97,14.5222]
[1727336231303,3.3118,151.0,150.97,14.5222]
[1727336233600,3.3115,151.01,150.97,14.5222]
[1727336234905,3.3118,151.0,150.97,11.21]
[1727336235106,3.3118,151.0,150.96,14.5225]
[1727336238103,3.3118,151.0,150.97,11.21]
[1727336241507,3.3118,151.0,150.97,14.5223]
[1727336242603,11.21,151.04,150.98,14.522]
[1727336243208,11.21,151.02,150.97,14.5223]
[1727336244510,3.3118,151.0,150.97,14.5223]
[1727336245304,11.21,151.02,150.97,11.21]
[1727336245605,3.3115,151.01,150.98,14.5221]
[1727336247909,4.0313,151.05,150.98,11.21]
[1727336248404,11.21,151.04,150.98,14.522]
[1727336249913,3.3115,151.01,150.98,14.522]
[1727336256118,6.6166,151.16,151.0,11.21]
[1727336256416,3.3103,151.07,151.05,11.21]
[1727336256813,13.8506,151.1,151.05,11.21]
[1727336257718,7.9665,151.15,151.09,11.21]
[1727336257719,1.3496,151.15,151.09,11.21]
[1727336257919,11.21,151.14,151.08,11.21]
[1727336258111,11.21,151.14,151.07,11.21]
[1727336258112,11.21,151.12,151.07,11.21]
[1727336258310,11.21,151.12,151.02,56.14326741]
[1727336258311,3.3097,151.09,151.05,3.3105]
[1727336258507,3.3097,151.09,151.06,11.21]
[1727336258915,3.3096,151.1,151.06,14.5203]
[1727336259309,11.21,151.12,151.06,3.3103]
[1727336259508,11.21,151.12,151.07,11.21]
[1727336260008,11.21,151.12,151.07,14.5201]
[1727336260208,11.21,151.12,151.07,11.21]
[1727336260410,3.3097,151.1,151.07,11.21]
[1727336260814,3.3092,151.12,151.07,11.21]
[1727336261014,2.6544,151.14,151.08,11.21]
[1727336261214,11.21,151.13,151.08,11.21]
[1727336261620,3.3095,151.11,151.08,11.21]
[1727336261920,11.21,151.13,151.08,11.21]
[1727336262821,3.3097,151.1,151.08,11.21]
[1727336263015,2.6544,151.14,151.04,79.48]
[1727336263016,11.21,151.12,151.04,79.48]
[1727336263211,3.3099,151.09,151.07,11.21]
[1727336265423,3.31,151.08,151.07,11.21]
[1727336266334,3.31,151.08,151.04,82.7908]
[1727336266625,3.31,151.08,151.05,11.21]
[1727336267928,2.6544,151.14,151.04,82.7908]
[1727336267929,3.3102,151.07,151.04,82.7908]
[1727336268119,11.21,151.05,151.04,79.48]
[1727336268322,14.5206,151.05,151.04,79.48]
[1727336268516,3.3106,151.05,151.04,79.48]
[1727336268721,11.21,151.07,151.04,79.48]
[1727336268926,3.3104,151.07,151.04,90.69]
[1727336269325,3.3102,151.07,151.06,11.21]
[1727336270319,3.3105,151.06,151.04,79.48]
[1727336270525,11.21,151.09,151.04,90.69]
[1727336271224,11.21,151.09,151.04,11.21]
[1727336271528,3.3103,151.07,151.04,11.21]
[1727336272229,3.3104,151.06,151.04,11.21]
[1727336272633,3.3104,151.06,151.03,14.5209]
[1727336273320,3.3104,151.06,151.0,79.46]
[1727336273525,3.3104,151.06,151.03,11.21]
[1727336274028,3.3104,151.06,151.03,14.521]
[1727336278634,3.3106,151.05,151.0,79.46]
[1727336278932,3.3106,151.05,151.02,11.21]
[1727336279131,3.3108,151.05,151.02,11.21]
[1727336279633,11.21,151.05,151.0,82.7716]
[1727336279834,11.21,151.05,151.0,90.67]
[1727336280237,3.3113,151.02,151.0,90.67]
[1727336280532,11.21,151.05,151.0,11.21]
[1727336280834,3.3111,151.03,151.0,14.5216]
[1727336281926,3.3111,151.03,150.97,83.3933]
[1727336281927,11.21,151.03,150.97,83.3933]
[1727336282130,11.21,151.03,150.98,11.21]
[1727336282528,11.21,151.03,150.98,14.522]
[1727336282728,4.0269,151.07,150.99,11.21]
[1727336282729,11.21,151.04,150.99,11.21]
[1727336283138,11.21,151.05,151.0,11.21]
[1727336283839,3.3111,151.03,151.0,14.5216]
[1727336287739,11.21,151.03,150.97,85.34648587]
[1727336287943,11.21,151.02,150.97,90.67]
[1727336288343,11.21,151.02,150.97,93.9822]
[1727336288344,3.3118,151.0,150.97,93.9822]
[1727336288966,3.312,150.99,150.97,79.46]
[1727336289135,11.21,151.0,150.97,79.46]
[1727336289641,3.312,150.99,150.97,79.46]
[1727336290045,11.21,151.0,150.96,11.21]
[1727336290240,3.3121,150.99,150.96,11.21]
[1727336290440,3.3121,150.99,150.96,14.5225]
[1727336291041,3.3121,150.99,150.93,79.48]
[1727336291042,4.0269,151.07,150.98,11.21]
[1727336291346,4.0269,151.07,151.0,11.21]
[1727336291540,3.3114,151.02,151.0,11.21]
[1727336291844,11.21,151.05,151.01,11.21]
[1727336292043,15.2369,151.07,151.01,11.21]
[1727336292348,13.8407,151.07,151.02,11.21]
[1727336292940,13.8407,151.07,151.01,3.3113]
[1727336292941,2.6307,151.07,150.99,11.21]
[1727336293142,11.21,151.04,150.99,11.21]
[1727336293544,3.3113,151.02,150.99,14.5219]
[1727336295947,3.3113,151.02,150.99,11.21]
[1727336296244,3.3113,151.02,150.98,14.5221]
[1727336296446,11.21,151.04,150.98,14.5221]
[1727336296447,3.3115,151.01,150.98,14.5221]
[1727336297747,3.3115,151.01,150.97,11.21]
[1727336297748,3.3122,150.98,150.97,11.21]
[1727336297951,3.3122,150.98,150.96,79.48]
[1727336298349,11.21,151.01,150.96,79.48]
[1727336298350,3.312,150.99,150.96,79.48]
[1727336299754,3.312,150.99,150.96,82.7925]
[1727336303347,3.312,150.99,150.96,79.48]
[1727336303551,14.522,150.99,150.96,79.48]
[1727336303754,3.3121,150.98,150.96,79.48]
[1727336304046,3.3121,150.98,150.95,14.5228]
[1727336305555,3.312,150.99,150.95,14.5228]
[1727336306249,11.21,151.0,150.95,11.21]
[1727336307053,3.3119,150.99,150.96,3.3125]
[1727336309153,14.5218,151.0,150.96,3.3125]
[1727336309555,3.3118,151.0,150.97,14.5223]
[1727336310452,3.3116,151.01,150.97,14.5223]
[1727336311155,3.3116,151.01,150.98,3.3121]
[1727336311355,3.3116,151.01,150.98,14.5221]
[1727336313060,3.3114,151.02,150.98,14.5221]
[1727336313454,11.21,151.03,150.98,14.5221]
[1727336314459,11.21,151.02,150.97,14.5223]
[1727336315458,3.3117,151.0,150.97,14.5223]
[1727336318554,11.21,151.02,150.97,14.5223]
[1727336318555,3.3116,151.01,150.97,14.5223]
[1727336318955,11.21,151.02,150.97,14.5223]
[1727336319562,4.0125,151.07,150.99,11.21]
[1727336319762,11.21,151.04,150.99,11.21]
[1727336320165,11.21,151.03,150.99,11.21]
[1727336320562,11.21,151.03,150.99,14.5218]
[1727336320563,3.3114,151.02,150.99,14.5218]
[1727336322268,4.0125,151.07,151.0,11.21]
[1727336322569,11.21,151.06,151.01,11.21]
[1727336322759,3.3108,151.05,151.02,3.3113]
[1727336323158,11.21,151.06,151.01,11.21]
[1727336324869,3.3108,151.04,151.01,14.5213]
[1727336328272,3.3108,151.04,151.01,3.3113]
[1727336331970,12.5918,151.07,151.02,3.3112]
[1727336332170,12.5918,151.07,151.02,14.5212]
[1727336332171,11.21,151.07,151.02,14.5212]
[1727336332367,11.21,151.07,151.02,11.21]
[1727336332773,3.3105,151.06,151.03,3.311]
[1727336333071,11.21,151.06,151.0,11.21]
[1727336333575,11.21,151.04,151.0,14.5216]
[1727336334663,3.3111,151.03,151.0,3.3116]
[1727336334869,3.3111,151.03,151.0,14.5216]
[1727336335869,3.3111,151.03,151.0,11.21]
[1727336336071,3.3111,151.03,150.99,14.5219]
[1727336336272,3.3113,151.02,150.99,11.21]
[1727336336476,11.21,151.03,150.98,94.0221]
[1727336336776,14.5213,151.03,150.99,11.21]
[1727336337272,14.5213,151.03,150.99,14.5218]
[1727336338077,3.3113,151.03,150.99,14.5218]
[1727336339370,3.3113,151.03,151.0,11.21]
[1727336339772,3.3113,151.03,151.0,14.5217]
[1727336340276,11.21,151.05,151.0,14.5217]
[1727336340576,11.21,151.06,151.02,11.21]
[1727336340769,3.3106,151.06,151.04,11.21]
[1727336340969,4.0208,151.13,151.04,11.21]
[1727336341177,11.21,151.09,151.04,11.21]
[1727336341367,3.3105,151.06,151.04,11.21]
[1727336341773,4.0208,151.13,151.01,3.3113]
[1727336341774,11.21,151.08,151.01,3.3113]
[1727336341973,11.21,151.06,151.01,14.5213]
[1727336342269,11.21,151.07,151.02,11.21]
[1727336342979,3.3107,151.05,151.02,14.5211]
[1727336344176,3.3102,151.07,151.04,11.21]
[1727336344380,11.21,151.1,151.04,11.21]
[1727336344769,3.3102,151.07,151.04,14.5207]
[1727336348380,3.3104,151.06,151.04,11.21]
[1727336348581,11.21,151.08,151.02,11.21]
[1727336349084,3.3105,151.06,151.03,3.311]
[1727336349280,3.3105,151.06,151.03,14.521]
[1727336353992,3.3107,151.05,151.02,14.5212]
[1727336354192,3.3107,151.05,151.01,11.21]
[1727336354391,3.3107,151.05,151.02,11.21]
[1727336355194,3.3107,151.05,151.02,14.5211]
[1727336356298,3.3104,151.06,151.03,3.311]
[1727336356596,3.3104,151.06,151.04,11.21]
[1727336358797,4.0208,151.13,151.05,11.21]
[1727336359400,3.3101,151.08,151.05,14.5206]
[1727336359591,11.21,151.1,151.05,14.5206]
[1727336359791,11.21,151.1,151.05,11.21]
[1727336360497,3.3103,151.07,151.05,11.21]
[1727336361395,3.3103,151.07,151.04,3.3108]
[1727336361595,3.3103,151.07,151.0,79.48]
[1727336361596,3.3104,151.06,151.03,14.521]
[1727336362193,3.3101,151.08,151.04,11.21]
[1727336362394,11.21,151.11,151.06,11.21]
[1727336364206,11.21,151.09,151.05,11.21]
[1727336365007,3.3101,151.08,151.05,11.21]
[1727336365904,3.3103,151.07,151.04,11.21]
[1727336366104,4.0208,151.13,151.05,11.21]
[1727336366307,3.3101,151.08,151.05,14.5206]
[1727336366500,11.21,151.1,151.01,3.9287]
[1727336366707,4.0208,151.13,151.04,11.21]
[1727336366904,3.3101,151.08,151.04,14.5208]
[1727336367205,11.21,151.09,151.04,14.5208]
[1727336367908,3.3103,151.07,151.04,14.5208]
[1727336369506,11.21,151.07,151.01,83.3887]
[1727336369706,11.21,151.07,151.02,11.21]
[1727336370108,3.3108,151.05,151.02,11.21]
[1727336370503,4.0208,151.13,151.03,11.21]
[1727336370810,3.3105,151.06,151.03,11.21]
[1727336371510,3.3105,151.06,151.03,14.521]
[1727336373116,3.3103,151.07,151.04,11.21]
[1727336373710,3.3103,151.07,151.04,14.5208]
[1727336377708,3.3105,151.06,151.04,11.21]
[1727336377915,3.3105,151.06,151.03,14.521]
[1727336378108,3.3105,151.06,151.03,11.21]
[1727336378415,11.21,151.07,151.03,11.21]
[1727336379017,3.3105,151.06,151.03,11.21]
[1727336379607,3.3105,151.06,151.02,3.3112]
[1727336379608,3.3105,151.06,151.05,11.21]
[1727336383518,4.0208,151.13,151.05,11.21]
[1727336383714,11.21,151.12,151.07,11.21]
[1727336384310,3.31,151.08,151.07,11.21]
[1727336386619,3.3099,151.09,151.07,11.21]
[1727336388419,3.3099,151.09,151.07,14.5202]
[1727336388615,3.3096,151.1,151.08,11.21]
[1727336393319,4.0208,151.13,151.08,11.21]
[1727336393520,4.0208,151.13,151.1,11.21]
[1727336394626,3.3093,151.11,151.1,11.21]
[1727336395031,3.3093,151.11,151.06,3.27362048]
[1727336395032,15.2308,151.13,151.08,11.21]
[1727336396422,15.2308,151.13,151.07,11.21]
[1727336398626,3.3097,151.1,151.07,11.21]
[1727336400625,3.3097,151.1,151.08,11.21]
[1727336401329,3.3097,151.09,151.08,11.21]
[1727336401525,3.3097,151.09,151.06,3.3103]
[1727336401728,3.3097,151.09,151.07,11.21]
[1727336403731,3.3096,151.1,151.08,11.21]
[1727336404424,3.3094,151.11,151.08,14.5199]
[1727336404630,3.3094,151.11,151.1,11.21]
[1727336406433,3.3094,151.11,151.08,3.3099]
[1727336406634,3.3094,151.11,151.09,11.21]
[1727336408334,3.3094,151.11,151.1,11.21]
[1727336410537,3.3091,151.12,151.1,11.21]
[1727336410831,3.3091,151.12,151.11,11.21]
[1727336412033,3.3091,151.12,151.1,11.21]
[1727336415139,3.3091,151.12,151.09,3.3097]
[1727336415345,3.3091,151.12,151.11,11.21]
[1727336417240,11.21,151.17,151.11,11.21]
[1727336417543,11.21,151.16,151.12,11.21]
[1727336417741,11.21,151.16,151.1,11.21]
[1727336418344,11.21,151.16,151.06,3.9959]
[1727336418545,11.21,151.16,151.1,11.21]
[1727336419839,7.23296722,151.19,151.11,11.21]
[1727336420038,11.21,151.16,151.11,11.21]
[1727336420843,3.3091,151.12,151.11,11.21]
[1727336423343,3.9824,151.19,151.11,14.5191]
[1727336423543,11.21,151.18,151.13,11.21]
[1727336423947,11.21,151.17,151.13,11.21]
[1727336424742,3.3088,151.14,151.13,11.21]
[1727336425147,3.9824,151.19,151.13,11.21]
[1727336425447,3.3084,151.16,151.14,11.21]
[1727336425646,3.9824,151.19,151.14,11.21]
[1727336425949,11.21,151.18,151.12,3.3091]
[1727336426144,3.9824,151.19,151.13,11.21]
[1727336426345,15.1924,151.19,151.14,11.21]
[1727336427346,3.3084,151.15,151.14,11.21]
[1727336427546,15.1924,151.19,151.14,11.21]
[1727336427946,3.3083,151.16,151.14,11.21]
[1727336430551,3.3084,151.15,151.14,11.21]
[1727336432149,15.1924,151.19,151.14,11.21]
[1727336433157,15.1924,151.19,151.12,3.309]
[1727336433352,15.1924,151.19,151.11,3.32207994]
[1727336433657,11.21,151.18,151.14,11.21]
[1727336433847,3.3087,151.14,151.13,11.21]
[1727336434449,3.309,151.13,151.11,11.21]
[1727336437269,3.309,151.13,151.12,11.21]
[1727336437470,3.3091,151.12,151.11,11.21]
[1727336438570,3.309,151.13,151.11,11.21]
[1727336440874,3.309,151.13,151.12,11.21]
[1727336442669,3.3091,151.12,151.09,3.3097]
[1727336442873,11.21,151.14,151.07,79.42]
[1727336443170,3.31,151.08,151.07,90.63]
[1727336443376,3.9824,151.19,151.07,90.63]
[1727336443576,11.21,151.13,151.07,90.63]
[1727336443974,3.3099,151.09,151.07,90.63]
[1727336444378,11.21,151.12,151.07,11.21]
[1727336444680,11.21,151.08,151.02,79.44]
[1727336444881,11.21,151.08,151.03,11.21]
[1727336445070,11.21,151.08,151.02,79.44]
[1727336445071,3.3108,151.05,151.02,79.44]
[1727336445276,3.3108,151.05,151.04,11.21]
[1727336445969,3.3104,151.06,151.04,11.21]
[1727336446277,7.28186981,151.11,151.05,11.21]
[1727336446581,7.28186981,151.11,151.07,11.21]
[1727336447178,11.21,151.12,151.07,11.21]
[1727336448080,3.3099,151.09,151.07,11.21]
[1727336450476,3.31,151.08,151.07,11.21]
[1727336451183,3.3102,151.07,151.06,11.21]
[1727336451988,3.31,151.08,151.06,11.21]
[1727336452683,3.3102,151.07,151.06,11.21]
[1727336454681,3.31,151.08,151.06,11.21]
[1727336455588,3.31,151.08,151.07,11.21]
[1727336459282,3.31,151.08,151.03,3.27161723]
[1727336459283,3.3102,151.07,151.05,11.21]
[1727336459477,3.8646,151.16,151.05,11.21]
[1727336459478,11.21,151.1,151.05,11.21]
[1727336459880,3.3103,151.07,151.05,11.21]
[1727336462591,11.21,151.1,151.05,11.21]
[1727336462592,3.3104,151.06,151.05,11.21]
[1727336467983,11.21,151.09,151.02,3.3112]
[1727336468183,11.21,151.09,151.04,11.21]
[1727336468591,11.21,151.09,151.05,11.21]
[1727336468788,11.21,151.09,151.01,79.46]
[1727336468789,4.0658,151.11,151.06,11.21]
[1727336468989,4.0658,151.11,151.08,11.21]
[1727336469188,3.3097,151.09,151.08,11.21]
[1727336469696,3.3092,151.12,151.08,14.5198]
[1727336469892,11.21,151.16,151.1,11.21]
[1727336470196,3.3091,151.12,151.1,11.21]
[1727336471391,7.33421963,151.19,151.1,11.21]
[1727336471392,3.3089,151.13,151.1,11.21]
[1727336471596,3.3089,151.13,151.12,11.21]
[1727336477495,3.3091,151.12,151.11,11.21]
[1727336478496,11.21,151.14,151.07,79.44]
[1727336478803,11.21,151.14,151.09,11.21]
[1727336479404,3.3094,151.11,151.09,11.21]
[1727336482200,3.3094,151.11,151.1,11.21]
[1727336482400,3.3092,151.12,151.1,11.21]
[1727336482601,3.3092,151.12,151.11,11.21]
[1727336483001,3.3089,151.13,151.11,11.21]
[1727336483201,3.3089,151.13,151.12,11.21]
[1727336490210,3.3087,151.14,151.12,11.21]
[1727336490397,11.21,151.17,151.12,11.21]
[1727336491807,3.3089,151.13,151.12,11.21]
[1727336493509,7.33421963,151.19,151.12,11.21]
[1727336493510,3.3087,151.14,151.12,11.21]
[1727336494812,3.3089,151.13,151.12,11.21]
[1727336498310,7.33421963,151.19,151.12,11.21]
[1727336498514,4.0658,151.19,151.15,11.21]
[1727336498708,13.9781,151.19,151.15,11.21]
[1727336499910,3.3083,151.16,151.15,11.21]
[1727336502714,3.3087,151.14,151.13,11.21]
[1727336509616,3.3089,151.13,151.12,11.21]
[1727336509823,3.3089,151.13,151.11,11.21]
[1727336512117,3.3091,151.12,151.11,11.21]
[1727336514926,3.3091,151.12,151.1,11.21]
[1727336517730,3.3091,151.12,151.11,11.21]
[1727336519634,6.6135,151.23,151.11,11.21]
[1727336519826,4.0523,151.22,151.13,11.21]
[1727336520028,11.21,151.17,151.13,11.21]
[1727336520226,3.3086,151.15,151.14,11.21]
[1727336520627,3.3086,151.15,151.13,11.21]
[1727336524237,3.3086,151.15,151.14,11.21]
[1727336525543,3.3083,151.16,151.14,11.21]
[1727336526142,11.21,151.18,151.12,3.3091]
[1727336526338,11.21,151.18,151.13,11.21]
[1727336527938,3.3084,151.16,151.13,11.21]
[1727336528340,11.21,151.18,151.13,11.21]
[1727336528534,11.21,151.17,151.11,11.21]
[1727336529137,3.3088,151.14,151.11,11.21]
[1727336530842,3.3088,151.14,151.08,3.26051929]
[1727336530843,11.21,151.13,151.07,79.42]
[1727336531034,11.21,151.12,151.07,90.63]
[1727336531346,3.3097,151.1,151.07,90.63]
[1727336531539,11.21,151.1,151.07,79.42]
[1727336532041,5.99320656,151.15,151.08,11.21]
[1727336532237,11.21,151.11,151.07,79.42]
[1727336532440,11.21,151.11,151.07,90.63]
[1727336533136,3.3097,151.1,151.07,90.63]
[1727336533342,2.6634,151.15,151.08,11.21]
[1727336533543,11.21,151.13,151.08,11.21]
[1727336533743,3.3094,151.11,151.08,11.21]
[1727336535447,3.3094,151.11,151.07,3.3101]
[1727336535645,3.3094,151.11,151.09,11.21]
[1727336536247,11.21,151.13,151.09,11.21]
[1727336536450,2.6634,151.15,151.08,11.21]
[1727336536652,11.21,151.13,151.08,11.21]
[1727336536843,3.3091,151.12,151.08,11.21]
[1727336537046,2.6634,151.15,151.1,11.21]
[1727336537047,13.8734,151.15,151.1,11.21]
[1727336537249,1.4055,151.16,151.12,11.21]
[1727336537446,3.3086,151.15,151.12,11.21]
[1727336537643,1.4055,151.16,151.12,11.21]
[1727336538346,3.3088,151.14,151.12,11.21]
[1727336539350,3.3085,151.15,151.13,11.21]
[1727336543452,3.3082,151.16,151.13,11.21]
[1727336543647,3.3082,151.16,151.14,11.21]